bitfinex/quotes_SOLUSD_20260203
["timestamp","ask_amount","ask_price","bid_price","bid_amount"]
[1770107716019,1e-08,104.87,104.85,13.03991762]
[1770107716211,1e-08,104.87,104.85,36.88350369]
[1770107716523,1e-08,104.87,104.85,36.87755162]
[1770107717119,1e-08,104.87,104.85,13.03396555]
[1770107717515,1e-08,104.87,104.86,3.49743188]
[1770107717715,6.47445091,104.88,104.86,3.49743188]
[1770107718106,6.47445091,104.88,104.86,13.03345522]
[1770107720022,6.47445091,104.88,104.86,9.53602334]
[1770107720211,6.47445091,104.88,104.86,13.03345522]
[1770107721128,6.47445091,104.88,104.86,13.05392837]
[1770107721526,7.48588244,104.88,104.85,13.05487615]
[1770107722229,7.48588244,104.88,104.86,9.53649532]
[1770107722436,6.47445091,104.88,104.86,13.05570747]
[1770107723215,6.47445091,104.88,104.86,12.89754903]
[1770107724230,7.48588244,104.88,104.86,9.37833688]
[1770107724429,6.47445091,104.88,104.86,9.4026865]
[1770107726233,6.47445091,104.88,104.86,12.90011838]
[1770107727129,6.47445091,104.88,104.86,12.90386281]
[1770107730241,1.01143153,104.87,104.83,33.41910002]
[1770107730539,1.01143153,104.87,104.83,36.9165319]
[1770107732051,1.01143153,104.87,104.84,3.53032084]
[1770107733553,1.01143153,104.86,104.83,3.53263647]
[1770107734248,1.01143153,104.86,104.83,13.07107891]
[1770107734555,1.01143153,104.86,104.84,3.53377438]
[1770107734751,1.01143153,104.87,104.85,3.49743188]
[1770107735138,1e-08,104.88,104.87,0.03746734]
[1770107735443,1.21143153,104.9,104.87,3.53489922]
[1770107735632,1.21143153,104.9,104.88,3.49743188]
[1770107735830,1e-08,104.9,104.89,3.53489922]
[1770107736054,0.2,104.91,104.89,3.53489922]
[1770107736353,0.2,104.91,104.9,9.53288846]
[1770107736854,1.21143153,104.92,104.9,9.53288846]
[1770107737555,1.21143153,104.92,104.89,9.53330246]
[1770107737855,1.21143153,104.92,104.89,13.07041274]
[1770107738454,1.21143153,104.92,104.89,13.03073434]
[1770107738664,1.01143153,104.91,104.88,9.53422113]
[1770107739154,1.01143153,104.91,104.87,9.53486872]
[1770107739347,1.01143153,104.91,104.88,9.53449359]
[1770107742361,1.01143153,104.9,104.86,3.49743188]
[1770107742657,1.01143153,104.9,104.86,13.03357338]
[1770107742953,1.01143153,104.9,104.87,9.53552615]
[1770107743162,1.01143153,104.9,104.87,13.03295803]
[1770107743741,1.01143153,104.9,104.87,13.07897121]
[1770107743954,1.01143153,104.9,104.87,13.03295803]
[1770107746659,1.01143153,104.89,104.86,9.53603526]
[1770107747043,4.50886341,104.89,104.85,9.53697687]
[1770107747244,1.01143153,104.88,104.85,13.03440875]
[1770107747453,1.01143153,104.88,104.86,9.53642867]
[1770107748065,1.01143153,104.89,104.87,3.49743188]
[1770107748365,1.01143153,104.9,104.87,3.54839875]
[1770107751566,1.01143153,104.9,104.88,9.53470633]
[1770107751958,1.01143153,104.9,104.88,13.03213821]
[1770107752159,1.01143153,104.91,104.89,3.49743188]
[1770107752948,1.21143153,104.92,104.89,3.49743188]
[1770107753750,1.21143153,104.92,104.89,13.08788713]
[1770107754168,1.21143153,104.92,104.89,9.53301677]
[1770107754467,1.21143153,104.92,104.88,13.03167654]
[1770107754468,1.01143153,104.91,104.88,13.03167654]
[1770107755471,1.01143153,104.91,104.88,3.49743188]
[1770107755678,1.01143153,104.89,104.86,9.53607854]
[1770107756049,1.01143153,104.89,104.86,13.09270382]
[1770107756466,1.01143153,104.89,104.86,13.03351042]
[1770107756852,1.01143153,104.91,104.87,3.55748765]
[1770107757251,1.01143153,104.91,104.88,3.49743188]
[1770107758054,1.01143153,104.91,104.89,13.03122919]
[1770107759569,0.2,104.92,104.9,3.56001579]
[1770107759968,1.21143153,104.92,104.9,3.49743188]
[1770107760284,0.2,104.92,104.9,13.09370536]
[1770107761474,0.2,104.92,104.9,13.03029802]
[1770107761475,1.21143153,104.92,104.9,13.03029802]
[1770107761858,7.1761912,104.96,104.92,0.06422131]
[1770107762065,1.01143153,104.95,104.92,13.02783804]
[1770107762373,1.01143153,104.94,104.91,9.53151311]
[1770107762676,1.01143153,104.94,104.91,13.09397093]
[1770107762870,1.01143153,104.95,104.91,3.56245782]
[1770107763275,1.01143153,104.95,104.91,3.49743188]
[1770107764277,1.01143153,104.95,104.92,9.53085036]
[1770107764575,1.01143153,104.95,104.92,13.02828224]
[1770107765171,1.01143153,104.95,104.92,36.85596047]
[1770107766578,1.01143153,104.95,104.92,36.92411353]
[1770107766750,6.16475967,104.96,104.94,3.56558494]
[1770107766955,0.1,105.0,104.95,3.49743188]
[1770107767149,1.14587722,104.99,104.96,3.49743188]
[1770107767355,1.14587722,104.99,104.95,3.49743188]
[1770107767552,10.67065299,104.99,104.95,3.49743188]
[1770107767762,1.04587722,104.98,104.95,3.49743188]
[1770107768677,1.04587722,104.98,104.95,9.52815427]
[1770107769076,1.04587722,104.97,104.94,9.5289888]
[1770107769263,1.04587722,104.95,104.92,9.53018091]
[1770107769578,1.04587722,104.95,104.93,9.53006479]
[1770107769962,1.04587722,104.96,104.92,13.02842344]
[1770107770168,1.04587722,104.95,104.92,9.53099156]
[1770107770362,1.04587722,104.94,104.91,9.53149111]
[1770107770571,1.04587722,104.96,104.92,13.02774005]
[1770107771985,1.04587722,104.96,104.93,3.49743188]
[1770107772186,10.57339573,104.96,104.93,3.49743188]
[1770107772365,10.57339573,104.96,104.94,3.49743188]
[1770107772366,1.04587722,104.96,104.94,3.49743188]
[1770107772878,1.04587722,104.96,104.93,3.49743188]
[1770107773078,10.57336874,104.96,104.92,3.49743188]
[1770107773277,1.04587722,104.95,104.92,3.49743188]
[1770107773476,1.04587722,104.95,104.91,36.85936115]
[1770107774293,1.04587722,104.94,104.91,9.53197979]
[1770107774464,1.04587722,104.94,104.91,9.53192029]
[1770107774781,1.04587722,104.95,104.92,3.49743188]
[1770107775765,1.04587722,104.95,104.91,13.02935217]
[1770107776266,1.04587722,104.94,104.91,9.53192029]
[1770107776468,1.04587722,104.94,104.9,10.18791091]
[1770107776684,1.04587722,104.92,104.9,5.64512798]
[1770107779189,3.49441168,104.94,104.9,5.64512798]
[1770107779190,10.47578206,104.93,104.9,5.64512798]
[1770107779683,0.9453827,104.93,104.9,18.67236138]
[1770107780084,0.9453827,104.93,104.9,19.62026555]
[1770107780388,10.53008612,104.94,104.91,3.49441168]
[1770107780789,10.52835687,104.96,104.92,4.47488586]
[1770107781167,1.00043851,104.95,104.92,14.00579731]
[1770107782307,1.00043851,104.95,104.92,10.51138563]
[1770107782465,1.00043851,104.94,104.9,18.67187853]
[1770107782669,1.00043851,104.94,104.91,9.53194443]
[1770107782985,1.00043851,104.94,104.91,14.00647749]
[1770107783286,1.00043851,104.94,104.92,9.53100903]
[1770107783470,1.00043851,104.94,104.91,14.00633703]
[1770107784992,1.00043851,104.93,104.9,19.65248405]
[1770107785486,1.00043851,104.93,104.9,15.17759819]
[1770107785665,1.00043851,104.93,104.9,16.15807237]
[1770107787381,10.53069927,104.93,104.9,15.17759819]
[1770107788372,1.00043851,104.92,104.9,5.64512798]
[1770107788581,1.00043851,104.93,104.9,15.17794405]
[1770107788780,1.00043851,104.93,104.9,16.15841823]
[1770107789001,1.00043851,104.93,104.9,19.65282991]
[1770107789697,1.00043851,104.94,104.9,19.65282991]
[1770107790999,1.00043851,104.94,104.91,3.49441168]
[1770107791174,135.24086188,104.99,104.92,4.47488586]
[1770107791175,1.00043851,104.97,104.92,4.47488586]
[1770107791381,1.00043851,104.98,104.95,4.47488586]
[1770107791697,10.62563541,104.99,104.95,4.47488586]
[1770107792087,10.62563541,104.99,104.95,0.98047418]
[1770107792280,10.62563541,104.99,104.95,4.47488586]
[1770107792693,10.62563541,104.99,104.95,14.00298084]
[1770107792879,1.00043851,104.98,104.95,3.49441168]
[1770107793079,1.00043851,104.98,104.94,14.00364984]
[1770107793494,1.00043851,104.98,104.95,9.52828445]
[1770107793699,1.00043851,104.98,104.94,9.52914066]
[1770107793884,1.00043851,104.97,104.94,13.02355234]
[1770107794284,1.00043851,104.97,104.94,3.49441168]
[1770107794699,1.00043851,104.97,104.94,13.02322567]
[1770107795005,10.52713051,104.97,104.94,13.02361921]
[1770107795180,1.00043851,104.97,104.94,13.02361921]
[1770107795379,1.00043851,104.97,104.94,14.00409339]
[1770107796501,1.00043851,104.97,104.94,13.02361921]
[1770107797304,1.00043851,104.96,104.93,10.51015618]
[1770107797603,1.00043851,104.96,104.93,14.00456786]
[1770107797994,1.00043851,104.96,104.93,9.529682]
[1770107799203,1.00043851,104.95,104.92,9.53056322]
[1770107799786,1.00043851,104.95,104.92,14.00544908]
[1770107799986,23.81645065,104.97,104.92,14.00544908]
[1770107799987,10.52736925,104.97,104.93,4.47488586]
[1770107800205,1.00043851,104.97,104.93,4.47488586]
[1770107800693,1.00043851,104.96,104.93,4.47488586]
[1770107801207,1.00043851,104.96,104.93,10.51002338]
[1770107801395,1.00043851,104.96,104.93,14.00443506]
[1770107801597,1.00043851,104.97,104.94,3.49441168]
[1770107803513,1.00043851,104.97,104.94,13.02345332]
[1770107803691,1.00043851,104.96,104.93,14.00451666]
[1770107804114,1.00043851,104.96,104.94,9.52909338]
[1770107805013,1.00043851,104.97,104.94,9.52909338]
[1770107805512,1.00043851,104.96,104.94,9.52909338]
[1770107810519,10.47537711,104.98,104.95,0.98162564]
[1770107810902,0.94924963,104.98,104.95,4.47603732]
[1770107811415,10.47495597,104.98,104.95,0.98162564]
[1770107811603,0.94924963,104.97,104.94,10.51071902]
[1770107812719,10.47579218,104.97,104.94,10.51071902]
[1770107816123,0.99422486,104.96,104.94,0.98162564]
[1770107816627,0.99422486,104.97,104.94,10.51066947]
[1770107817428,0.99422486,104.97,104.94,14.00508115]
[1770107818141,10.52106437,104.97,104.94,0.98162564]
[1770107818438,10.52106437,104.97,104.94,10.51080129]
[1770107819528,10.52025249,104.98,104.95,0.98913161]
[1770107819830,0.99422486,104.97,104.94,14.01271894]
[1770107820430,0.99422486,104.97,104.94,10.51830726]
[1770107821825,0.99422486,104.96,104.94,10.51830726]
[1770107822032,10.52088962,104.97,104.94,10.51830726]
[1770107822526,0.99422486,104.97,104.94,10.51830726]
[1770107822823,0.99422486,104.97,104.94,14.01271894]
[1770107823631,0.99422486,104.97,104.94,10.51830726]
[1770107823935,0.99422486,104.97,104.94,14.01271894]
[1770107824614,0.99422486,104.97,104.94,13.02358733]
[1770107825015,0.99422486,104.97,104.94,14.01271894]
[1770107825622,0.99422486,104.97,104.94,13.02358733]
[1770107825826,0.99422486,104.96,104.92,9.5306545]
[1770107826033,0.99422486,104.95,104.92,9.5306545]
[1770107826236,0.99422486,104.95,104.93,13.02455471]
[1770107826541,0.99422486,104.97,104.94,4.48354329]
[1770107826731,0.99422486,104.97,104.95,3.49441168]
[1770107826940,0.99422486,104.97,104.93,33.35555044]
[1770107827240,0.99422486,104.97,104.94,3.49441168]
[1770107828432,0.99422486,104.97,104.94,13.02278982]
[1770107828822,0.99422486,104.97,104.94,14.01192143]
[1770107829830,0.99422486,104.98,104.95,4.48354329]
[1770107830935,0.99422486,104.98,104.95,0.98913161]
[1770107831118,1.09422486,104.99,104.96,4.48354329]
[1770107831319,10.61905643,104.99,104.96,4.48354329]
[1770107831519,0.99422486,104.98,104.96,3.49441168]
[1770107831721,0.99422486,104.98,104.95,14.01146877]
[1770107832016,0.99422486,104.98,104.95,13.02233716]
[1770107832327,0.99422486,104.98,104.95,9.52792548]
[1770107832934,3.49441168,104.97,104.93,1.02759972]
[1770107833136,3.49441168,104.95,104.92,1.02759972]
[1770107834022,3.49441168,104.95,104.92,10.55829695]
[1770107834642,13.022814,104.95,104.92,10.55829695]
[1770107835140,13.022814,104.95,104.92,9.53069723]
[1770107835639,3.49441168,104.95,104.92,9.53069723]
[1770107836235,3.49441168,104.95,104.92,10.55829695]
[1770107836432,13.02178411,104.96,104.92,10.55829695]
[1770107836830,13.02079587,104.97,104.93,1.02759972]
[1770107837027,13.01984685,104.98,104.94,1.02759972]
[1770107837231,13.11897034,104.99,104.95,1.02759972]
[1770107838116,13.11897034,104.99,104.95,10.55574532]
[1770107838318,3.49385356,104.98,104.94,10.55631954]
[1770107838821,3.49385356,104.98,104.95,1.02759972]
[1770107839240,3.49385356,104.98,104.94,10.55631954]
[1770107839630,36.93076193,104.99,104.95,1.02759972]
[1770107839942,3.49385356,104.98,104.94,10.55631954]
[1770107840119,3.49385356,104.97,104.94,9.52871982]
[1770107840743,3.49385356,104.96,104.93,10.55748921]
[1770107841338,3.49385356,104.97,104.93,10.55748921]
[1770107842436,13.02091775,104.97,104.93,10.55748921]
[1770107843747,3.49385356,104.94,104.91,40.38988271]
[1770107843949,3.49385356,104.92,104.91,30.85828875]
[1770107844257,3.49385356,104.92,104.89,10.56099272]
[1770107845060,3.49385356,104.93,104.9,10.56048565]
[1770107845344,3.49385356,104.93,104.9,1.02759972]
[1770107845740,13.02471592,104.93,104.9,1.02759972]
[1770107846445,13.02471592,104.93,104.89,10.56090599]
[1770107846628,3.49385356,104.92,104.89,10.56090599]
[1770107847030,3.49385356,104.92,104.89,1.02759972]
[1770107848047,3.49385356,104.92,104.89,10.56136378]
[1770107848342,13.02513817,104.92,104.88,10.56179137]
[1770107848548,3.49385356,104.91,104.88,10.56179137]
[1770107848930,3.49385356,104.91,104.86,3.49385356]
[1770107849236,3.49385356,104.91,104.84,26.46]
[1770107849237,3.49385356,104.9,104.87,10.56273759]
[1770107849744,3.49385356,104.91,104.87,10.56273759]
[1770107850347,3.49385356,104.91,104.87,1.02759972]
[1770107850348,3.49385356,104.9,104.87,1.02759972]
[1770107850545,3.49385356,104.9,104.87,10.56316113]
[1770107850750,13.02608877,104.91,104.87,10.56316113]
[1770107852056,3.49385356,104.9,104.87,10.56316113]
[1770107852554,3.49385356,104.91,104.88,1.02759972]
[1770107852748,33.36015956,104.92,104.88,1.02759972]
[1770107853058,3.49385356,104.91,104.88,1.02759972]
[1770107853453,33.36015956,104.92,104.88,1.02759972]
[1770107853635,3.49385356,104.91,104.88,1.02759972]
[1770107854355,9.53107129,104.92,104.88,10.56190579]
[1770107854656,3.49385356,104.91,104.88,1.02759972]
[1770107856857,28.10124135,104.93,104.89,1.02759972]
[1770107857158,27.31982406,104.93,104.89,1.02759972]
[1770107858143,23.8259705,104.93,104.89,1.02759972]
[1770107858344,27.31982406,104.93,104.89,1.02759972]
[1770107858876,3.49385356,104.92,104.89,1.02759972]
[1770107859041,27.31982406,104.93,104.89,1.02759972]
[1770107861869,36.84998702,104.93,104.89,1.02759972]
[1770107862362,13.02353743,104.94,104.9,1.02759972]
[1770107862547,9.52968387,104.94,104.9,1.02759972]
[1770107862746,9.52875766,104.95,104.92,1.02759972]
[1770107862959,36.84252667,104.96,104.92,1.02759972]
[1770107863156,9.52795908,104.96,104.92,4.52145328]
[1770107863363,9.52795908,104.96,104.92,1.02759972]
[1770107863664,13.02181264,104.96,104.92,1.02759972]
[1770107863859,9.52700516,104.97,104.93,1.02759972]
[1770107864067,9.52562392,104.98,104.94,4.52145328]
[1770107864459,9.52562392,104.98,104.94,1.02759972]
[1770107864460,13.01947748,104.98,104.94,1.02759972]
[1770107865168,3.49385356,104.97,104.93,1.02759972]
[1770107865462,3.49385356,104.94,104.9,10.56003163]
[1770107865850,3.49385356,104.94,104.91,1.02759972]
[1770107866343,3.49385356,104.93,104.91,1.02759972]
[1770107866548,3.49385356,104.92,104.89,9.53340527]
[1770107866746,3.49385356,104.92,104.89,10.56100499]
[1770107870369,13.02548241,104.92,104.89,1.02759972]
[1770107870573,3.49385356,104.91,104.88,1.02759972]
[1770107870964,3.49385356,104.91,104.88,10.56227624]
[1770107871269,3.49385356,104.91,104.89,1.02759972]
[1770107871454,13.02548241,104.92,104.89,10.56135603]
[1770107871650,13.02548241,104.92,104.89,1.02759972]
[1770107871855,3.49385356,104.91,104.88,1.02759972]
[1770107873290,13.02624306,104.91,104.88,1.02759972]
[1770107873790,7.76912441,104.94,104.9,1.02759972]
[1770107874164,17.2989045,104.94,104.9,1.02759972]
[1770107874664,9.52978009,104.94,104.91,1.02759972]
[1770107875068,27.31124731,104.97,104.93,1.02759972]
[1770107875273,3.49385356,104.98,104.94,1.02759972]
[1770107875882,3.49385356,104.97,104.94,1.02759972]
[1770107876085,3.49385356,104.98,104.94,1.02759972]
[1770107876585,7.76912441,104.98,104.94,1.02759972]
[1770107876997,3.49385356,104.98,104.94,1.02759972]
[1770107877486,3.49385356,104.98,104.93,9.52975637]
[1770107877487,9.52653138,104.97,104.93,10.55735609]
[1770107877703,9.52653138,104.97,104.94,1.02759972]
[1770107878182,9.52600341,104.98,104.95,1.02759972]
[1770107880288,36.83391679,104.98,104.94,1.02759972]
[1770107880675,3.49385356,104.97,104.94,1.02759972]
[1770107881088,36.83391679,104.98,104.94,1.02759972]
[1770107881378,3.49385356,104.97,104.94,1.02759972]
[1770107881586,9.52743902,104.96,104.94,1.02759972]
[1770107881967,13.02088944,104.97,104.94,1.02759972]
[1770107882588,3.49385356,104.95,104.93,1.02759972]
[1770107882789,3.49385356,104.96,104.93,1.02759972]
[1770107883384,3.49385356,104.95,104.92,1.02759972]
[1770107883686,3.49385356,104.94,104.91,1.02759972]
[1770107884076,9.52930911,104.94,104.91,1.02759972]
[1770107885371,9.52930911,104.94,104.92,1.02759972]
[1770107886696,3.49385356,104.93,104.89,1.02759972]
[1770107886994,3.49385356,104.92,104.89,1.02759972]
[1770107887382,13.02316267,104.94,104.9,1.02759972]
[1770107887576,9.52930911,104.94,104.91,1.02759972]
[1770107887884,13.02316267,104.94,104.91,1.02759972]
[1770107888286,36.8462997,104.94,104.91,1.02759972]
[1770107889294,9.52930911,104.94,104.91,1.02759972]
[1770107889695,9.52930911,104.94,104.92,1.02759972]
[1770107891596,13.02271083,104.95,104.92,1.02759972]
[1770107891782,9.52785904,104.96,104.93,1.02759972]
[1770107892474,13.0217126,104.96,104.93,1.02759972]
[1770107895896,36.84031016,104.96,104.92,1.02759972]
[1770107896697,36.84031016,104.96,104.93,1.02759972]
[1770107896698,9.52785904,104.96,104.93,1.02759972]
[1770107897081,13.0217126,104.96,104.93,1.02759972]
[1770107898098,36.84031016,104.96,104.93,1.02759972]
[1770107898485,36.84029305,104.96,104.93,1.02759972]
[1770107900899,23.81859756,104.96,104.93,1.02759972]
[1770107901086,27.31243401,104.96,104.93,1.02759972]
[1770107901802,9.52653138,104.97,104.93,1.02759972]
[1770107901978,3.49383645,104.96,104.93,1.02759972]
[1770107902181,9.52653138,104.97,104.94,1.02759972]
[1770107902382,13.02036783,104.97,104.94,1.02759972]
[1770107902793,43.77513952,104.98,104.94,1.02759972]
[1770107903000,17.29513952,104.98,104.95,1.02759972]
[1770107903205,9.52603222,104.98,104.95,1.02759972]
[1770107903584,13.01986867,104.98,104.95,1.02759972]
[1770107904789,3.49383645,104.96,104.94,1.02759972]
[1770107905287,3.49383645,104.97,104.94,1.02759972]
[1770107905489,3.49383645,104.98,104.95,1.02759972]
[1770107905995,9.62471663,104.99,104.96,1.02759972]
[1770107906806,13.11855308,104.99,104.96,1.02759972]
[1770107907687,0.1,105.0,104.97,1.02759972]
[1770107907892,0.1,105.0,104.98,1.02759972]
[1770107908394,0.1,105.03,105.0,0.97759972]
[1770107908795,13.11502043,105.03,105.0,0.97759972]
[1770107909009,3.49383645,105.02,104.99,0.97759972]
[1770107909203,9.62111548,105.03,105.0,0.97759972]
[1770107909383,3.49383645,105.02,104.98,0.97759972]
[1770107909988,3.49383645,105.01,104.98,0.97759972]
[1770107910192,3.49383645,105.02,104.99,0.97759972]
[1770107910486,9.62137341,105.03,105.0,0.97759972]
[1770107910687,13.11520986,105.03,105.0,0.97759972]
[1770107911816,3.49383645,105.02,105.0,0.97759972]
[1770107912311,3.49383645,105.01,104.98,0.97759972]
[1770107912611,3.49383645,105.01,104.97,9.52629253]
[1770107912612,3.49383645,105.0,104.97,10.50389225]
[1770107912801,33.42409644,105.03,104.98,0.97759972]
[1770107913000,3.49383645,105.0,104.98,0.97759972]
[1770107914909,3.49383645,104.99,104.92,0.97759972]
[1770107915116,3.49383645,104.95,104.92,0.97759972]
[1770107915489,9.52562392,104.98,104.93,10.50727862]
[1770107915691,3.49383645,104.96,104.94,0.97759972]
[1770107916517,3.49383645,104.96,104.93,0.97759972]
[1770107916813,9.52562392,104.98,104.94,0.97759972]
[1770107917104,3.49383645,104.97,104.94,0.97759972]
[1770107917305,3.49383645,104.96,104.94,0.97759972]
[1770107918686,13.02057827,104.97,104.94,0.97759972]
[1770107919207,13.01925913,104.99,104.95,0.97759972]
[1770107919610,3.49383645,104.98,104.95,0.97759972]
[1770107920211,36.82760541,105.0,104.9,0.97759972]
[1770107920410,3.49383645,104.94,104.91,0.97759972]
[1770107920987,3.49383645,104.92,104.88,0.97759972]
[1770107921193,3.49383645,104.9,104.86,0.97759972]
[1770107921813,9.5334042,104.9,104.87,0.97759972]
[1770107922121,13.02724065,104.9,104.87,0.97759972]
[1770107922499,18.27826547,104.9,104.87,0.97759972]
[1770107923693,8.74486127,104.91,104.88,0.97759972]
[1770107923914,18.27593256,104.92,104.88,0.97759972]
[1770107924598,8.74486127,104.91,104.88,0.97759972]
[1770107925508,18.27703833,104.91,104.88,0.97759972]
[1770107926705,18.27697679,104.91,104.88,0.97759972]
[1770107927021,9.53211552,104.91,104.88,0.97759972]
[1770107927218,18.27697679,104.91,104.88,0.97759972]
[1770107929537,8.74486127,104.9,104.88,0.97759972]
[1770107931720,8.74486127,104.89,104.87,0.97759972]
[1770107932113,8.74486127,104.88,104.86,0.97759972]
[1770107932413,8.74486127,104.87,104.86,0.97759972]
[1770107932612,8.74486127,104.88,104.86,0.97759972]
[1770107933908,8.74486127,104.88,104.83,24.68444542]
[1770107933909,8.92246276,104.87,104.83,24.68444542]
[1770107934111,8.74486127,104.85,104.83,24.68444542]
[1770107935221,8.74486127,104.84,104.83,24.68444542]
[1770107935527,18.45696458,104.87,104.83,34.22367492]
[1770107935903,8.74486127,104.86,104.83,25.62104999]
[1770107936718,8.74486127,104.85,104.83,24.68444542]
[1770107937533,8.74486127,104.84,104.83,24.68444542]
[1770107937827,18.28320541,104.84,104.83,24.68444542]
[1770107938205,18.28320541,104.84,104.81,1.13660457]
[1770107938405,8.74486127,104.85,104.82,0.93660457]
[1770107938712,8.74486127,104.85,104.82,10.47673703]
[1770107938921,8.74486127,104.85,104.82,0.93660457]
[1770107939322,8.74486127,104.85,104.82,10.47653895]
[1770107939724,18.28245004,104.85,104.82,10.47653895]
[1770107940024,18.4541696,104.85,104.82,0.93660457]
[1770107940523,18.42401515,104.86,104.83,0.93660457]
[1770107941312,18.59359306,104.86,104.83,0.93660457]
[1770107941621,8.91443918,104.85,104.81,1.13660457]
[1770107941826,8.74486127,104.85,104.82,0.93660457]
[1770107942314,8.91338676,104.85,104.82,0.93660457]
[1770107942509,3.50100373,104.85,104.82,10.4766547]
[1770107943631,13.03846136,104.85,104.82,10.4766547]
[1770107945642,3.66644396,104.83,104.81,0.2]
[1770107945813,7.77627458,104.82,104.79,0.2]
[1770107946136,4.27527085,104.8,104.76,0.2]
[1770107946426,3.50100373,104.78,104.76,0.2]
[1770107947208,3.50100373,104.77,104.76,0.2]
[1770107947408,3.50100373,104.78,104.76,0.2]
[1770107947934,13.04487404,104.78,104.76,0.2]
[1770107948133,3.50100373,104.77,104.75,0.2]
[1770107948375,3.50100373,104.76,104.72,10.48548446]
[1770107948637,8.76920962,104.74,104.7,24.81391796]
[1770107948852,8.76920962,104.75,104.71,10.48674055]
[1770107949016,8.76920962,104.77,104.73,0.93660457]
[1770107949217,0.14216157,104.76,104.73,0.93660457]
[1770107949828,0.14216157,104.76,104.73,10.48485765]
[1770107950024,8.91137119,104.76,104.73,10.48485765]
[1770107950336,18.4570193,104.76,104.73,0.93660457]
[1770107950740,8.91137119,104.76,104.73,10.48486584]
[1770107951236,0.14216157,104.76,104.74,0.93660457]
[1770107951831,22.58909362,104.78,104.74,10.4839829]
[1770107952145,8.91137119,104.77,104.74,0.93660457]
[1770107952845,0.14216157,104.77,104.75,0.93660457]
[1770107953037,33.3856056,104.84,104.77,0.93660457]
[1770107953241,18.86752175,104.84,104.81,0.93660457]
[1770107953830,9.32917761,104.84,104.82,9.70581419]
[1770107954034,9.32917761,104.84,104.82,0.93660457]
[1770107955029,9.32917761,104.84,104.81,10.47761952]
[1770107955229,9.32917761,104.84,104.81,0.93660457]
[1770107955230,27.63676801,104.84,104.81,0.93660457]
[1770107955741,9.32917761,104.84,104.81,10.47765012]
[1770107955932,9.32917761,104.84,104.82,0.93660457]
[1770107960262,18.86754061,104.84,104.81,10.47365917]
[1770107960450,27.61919211,104.84,104.81,10.47365917]
[1770107960650,9.32917761,104.84,104.82,0.93261362]
[1770107963257,9.32917761,104.84,104.77,0.14216157]
[1770107963258,8.7516515,104.83,104.78,10.47608401]
[1770107963459,8.7516515,104.82,104.79,10.47542128]
[1770107963960,42.71350514,104.84,104.79,10.47542128]
[1770107964266,51.46515664,104.84,104.81,0.93261362]
[1770107964469,18.08082911,104.84,104.81,0.93261362]
[1770107965371,27.61929033,104.84,104.81,0.93261362]
[1770107965568,8.7516515,104.83,104.81,0.93261362]
[1770107965775,27.61929033,104.84,104.81,0.93261362]
[1770107966151,129.8,104.87,104.81,0.93261362]
[1770107966366,8.7516515,104.82,104.8,0.93261362]
[1770107967054,8.7516515,104.83,104.8,0.93261362]
[1770107967457,8.7516515,104.83,104.8,10.47458457]
[1770107967866,18.29100906,104.83,104.8,0.93261362]
[1770107968072,8.7516515,104.82,104.8,0.93261362]
[1770107968357,18.29100906,104.83,104.8,0.93261362]
[1770107969180,8.7516515,104.83,104.81,0.93261362]
[1770107969372,18.29004214,104.84,104.81,0.93261362]
[1770107969980,8.7516515,104.83,104.81,0.93261362]
[1770107970479,18.29004214,104.84,104.81,0.93261362]
[1770107971074,8.7516515,104.83,104.81,0.93261362]
[1770107971879,18.29004214,104.84,104.81,0.93261362]
[1770107972960,18.29004214,104.84,104.81,10.47364972]
[1770107973162,18.28926847,104.85,104.82,0.93261362]
[1770107973380,8.7516515,104.87,104.83,0.93261362]
[1770107973680,18.28726702,104.87,104.84,0.93261362]
[1770107974884,8.7516515,104.86,104.84,0.93261362]
[1770107977063,18.28827888,104.86,104.84,0.93261362]
[1770107977700,8.7516515,104.85,104.82,0.93261362]
[1770107977982,8.7516515,104.84,104.82,0.93261362]
[1770107978161,9.53820378,104.85,104.82,0.93261362]
[1770107978364,18.28985528,104.85,104.82,0.93261362]
[1770107978561,9.53820378,104.85,104.82,0.93261362]
[1770107978777,18.28985528,104.85,104.82,0.93261362]
[1770107981066,18.28843768,104.86,104.83,0.93261362]
[1770107982392,9.53587501,104.87,104.84,0.93261362]
[1770107982603,18.28752651,104.87,104.84,0.93261362]
[1770107982770,18.28752651,104.87,104.83,9.53903965]
[1770107982771,6.06362107,104.88,104.86,0.93261362]
[1770107983166,14.81527257,104.88,104.86,0.93261362]
[1770107983375,24.35005531,104.88,104.84,0.93261362]
[1770107983886,8.7516515,104.87,104.84,0.93261362]
[1770107984365,8.7516515,104.87,104.84,10.47072091]
[1770107985486,14.81527257,104.88,104.85,0.93261362]
[1770107985807,24.35016283,104.88,104.85,0.93261362]
[1770107985986,8.7516515,104.87,104.85,0.93261362]
[1770107986687,15.59851133,104.88,104.85,0.93261362]
[1770107986897,24.35016283,104.88,104.85,0.93261362]
[1770107987987,14.81527257,104.88,104.85,10.46994695]
[1770107988195,6.06362107,104.88,104.86,0.93261362]
[1770107991691,15.59842207,104.88,104.86,0.93261362]
[1770107991894,6.06362107,104.88,104.86,0.93261362]
[1770107992089,6.06362107,104.88,104.87,0.93261362]